[Event "NSV chessemy IM 2022"]
[Site "Braunschweig"]
[Date "2022.08.06"]
[Round "8.1"]
[White "Brynell, Stellan"]
[Black "Pubantz, Jan"]
[Result "1-0"]
[ECO "D43"]
[WhiteElo "2387"]
[BlackElo "2269"]
[Annotator "TA"]
[PlyCount "127"]
[EventDate "2022.07.30"]
[EventType "tourn"]
[EventCountry "GER"]
[SourceTitle "playchess.com"]
[Source "ChessBase"]
[SourceQuality "1"]
[TimeControl "40/5400+30:1800+30"]

{[%evp 11,127,18,17,10,7,6,11,8,2,0,0,-3,0,-9,-10,-27,-8,-15,-16,-16,0,-12,24,16,11,20,28,0,35,6,12,14,8,0,0,0,0,0,0,0,87,71,106,118,153,109,111,97,166,168,168,166,164,170,170,161,166,164,164,159,155,145,204,181,148,185,247,239,314,210,260,272,283,255,735,707,1120,1033,943,989,1212,1149,1115,904,29960,29962,29962,29957,29977,29977,29978,29978,29977,29979,29979,29977,29976,29977,29977,29978,29978,29979,29979,29980,29980,29981,29982,29983,29983,29983,29984,29985,29985,29984,29986,29987,29987,29988]} 1. d4 {[%emt 0:00:55]} d5 {[%emt 0:00:12]} 2. Nf3 {[%emt 0:00:06]} Nf6 {[%emt 0:00:06]} 3. c4 {[%emt 0:00:06]} c6 {[%emt 0:00:02]} 4. Qb3 {[%emt 0:00:11]} e6 {[%emt 0:00:39]} 5. Bg5 {[%emt 0:00:20]} Nbd7 {[%emt 0:03:16]} 6. Nc3 {[%emt 0:00:27]} h6 {[%emt 0:01:18] The modern move.} 7. Bh4 {[%emt 0:00:11] D43: Semi-Slav: 5 Bg5 h6.} Be7 {[%emt 0:00:32]} 8. e3 {[%emt 0:00:26]} O-O {[%emt 0:03:07]} 9. Bd3 {[%emt 0:00:37] The position is equal. has lost popularity (9.Rc1).} dxc4 {[%emt 0:03:06]} 10. Bxc4 {[%emt 0:01:06]} b5 {[%emt 0:07:12]} 11. Be2 {[%emt 0:09:58]} a6 {[%emt 0:04:10]} 12. a4 {[%emt 0:00:11]} b4 {[%emt 0:04:24]} 13. Nb1 {[%emt 0:00:16]} c5 {[%emt 0:02:55]} 14. O-O {[%emt 0:00:15]} Bb7 {[%emt 0:10:29]} (14... g5 $5 15. Bg3 Bb7 $11) 15. Nbd2 {[%emt 0:00:12]} cxd4 {[%emt 0:03:29]} 16. Nxd4 {[%emt 0:00:25] [#]} Rc8 $146 {[%emt 0:13:34]} ({Predecessor:} 16... Nc5 17. Qd1 Nfe4 18. Bxe7 Qxe7 19. Nxe4 Bxe4 20. Bf3 e5 21. Bxe4 Nxe4 22. Nc6 Qe6 {1-0 (65) Forsaa,E (2313)-Hammerstad,A (2170) Norway 2008}) 17. Rfc1 {[%emt 0:15:00]} Bd5 {[%emt 0:11:38]} 18. Qd1 {[%emt 0:02:25]} Nc5 {[%emt 0:00:49]} 19. f3 {[%emt 0:02:19]} Bb7 {[%emt 0:03:12]} 20. N2b3 {[%emt 0:15:47]} Nxb3 {[%emt 0:07:34]} 21. Nxb3 {[%emt 0:00:56]} Qxd1+ {[%emt 0:08:12]} 22. Rxd1 {[%emt 0:00:37]} Rc2 {[%emt 0:02:44][%csl LRb2,LRe2]} 23. Rd2 {[%emt 0:00:41]} (23. Kf1 {looks sharper.} Rxb2 24. Na5 Bd5 25. e4) 23... Rfc8 {[%emt 0:02:22] Threatens to win with ...Rxd2.} 24. Rad1 {[%emt 0:00:28][%cal Ba1d1,Bd1d2,Bd2d4][%mdl 32]} Rxd2 {[%emt 0:01:46]} 25. Rxd2 {[%emt 0:00:25]} Bd8 {[%emt 0:01:41] [#]} (25... Bd5 $11 {remains equal.} 26. Nd4 (26. Bxa6 Ra8 $17) 26... Bb7) 26. e4 $1 $16 {[%emt 0:03:50]} Bc7 {[%emt 0:02:23]} 27. Bg3 {[%emt 0:01:41]} Kf8 {[%emt 0:01:10]} 28. Kf1 {[%emt 0:07:08]} Bxg3 {[%emt 0:01:37]} 29. hxg3 {[%emt 0:00:06]} Rc7 {[%emt 0:00:05]} (29... e5 $16 {is a better defense.}) 30. Rd4 $18 {[%emt 0:02:19]} Nd7 {[%emt 0:01:12]} 31. Rxb4 {[%emt 0:00:55]} Ke7 {[%emt 0:00:12]} 32. Ke1 {[%emt 0:08:34]} Bc8 {[%emt 0:00:26]} 33. Kd2 {[%emt 0:00:53]} Ne5 {[%emt 0:00:40]} 34. f4 {[%emt 0:02:01]} Nd7 {[%emt 0:00:05]} 35. Ke3 {[%emt 0:01:43]} f6 {[%emt 0:01:04]} 36. Bc4 {[%emt 0:05:56] White is more active.} Nc5 {[%emt 0:00:32]} (36... e5 $16 37. Bd3 Kd8) 37. Nxc5 {[%emt 0:00:52]} Rxc5 {[%emt 0:00:00][%mdl 4096] Endgame KRB-KRB} 38. Kd4 {[%emt 0:00:33]} Rc7 {[%emt 0:00:39]} (38... Ra5 $142 39. e5 Kd7 40. exf6 gxf6) 39. b3 {[%emt 0:01:52]} Rd7+ {[%emt 0:00:49]} 40. Ke3 {[%emt 0:02:26]} Rb7 {[%emt 0:00:33]} 41. Rxb7+ {[%emt 0:31:28]} Bxb7 {[%emt 0:30:00] KB-KB} 42. Kd4 {[%emt 0:00:53]} Kd6 $2 {[%emt 0:00:00] [#]} (42... a5 43. Be2 Kd7) 43. e5+ {[%emt 0:00:00]} fxe5+ {[%emt 0:00:00]} 44. fxe5+ {[%emt 0:00:00]} Kd7 {[%emt 0:00:00]} 45. a5 {[%emt 0:00:00]} g5 {[%emt 0:00:00]} 46. b4 {[%emt 0:00:00]} h5 {[%emt 0:00:00]} 47. Ke3 {[%emt 0:00:00]} h4 {[%emt 0:00:00]} 48. gxh4 {[%emt 0:00:00] White mates.} gxh4 {[%emt 0:00:00]} 49. Kf4 {[%emt 0:00:00]} Bxg2 {[%emt 0:00:00]} 50. Bxa6 {[%emt 0:00:00]} h3 {[%emt 0:00:00]} 51. Bb5+ {[%emt 0:00:01]} Kc7 {[%emt 0:01:20]} 52. Kg3 {[%emt 0:00:05]} Kb7 {[%emt 0:01:20]} 53. Bd7 {[%emt 0:05:30]} Bf1 {[%emt 0:01:43]} 54. b5 {[%emt 0:04:07][%cal Bb4b5,Bb5b6][%mdl 32]} Kc7 {[%emt 0:01:01]} 55. Bc6 {[%emt 0:00:13]} Kb8 {[%emt 0:00:44]} 56. b6 {[%emt 0:02:59]} Kc8 {[%emt 0:00:11]} 57. Bf3 {[%emt 0:00:38]} Kb8 {[%emt 0:00:54]} 58. Bg4 {[%emt 0:01:39][%csl LRe6,LRh3]} Bc4 {[%emt 0:00:35]} 59. Bxh3 {[%emt 0:00:40]} ({Less strong is} 59. a6 Bxa6 60. Bxe6 h2 61. Kxh2 (61. Bd5 Bb7 $11) 61... Kb7 $16) 59... Kb7 {[%emt 0:00:09]} 60. Bg2+ {[%emt 0:00:14]} Ka6 {[%emt 0:00:01]} 61. Kf4 {[%emt 0:00:55]} Bb5 {[%emt 0:00:16]} 62. Kg5 {[%emt 0:00:55]} Bd7 {[%emt 0:00:16]} 63. Kf6 {[%emt 0:00:17]} Bc8 {[%emt 0:00:12]} 64. b7 {[%emt 0:00:21] Weighted Error Value: White=0.05 (flawless) /Black=0.25 (precise)} 1-0

[Event "NSV chessemy IM 2022"]
[Site "Braunschweig"]
[Date "2022.08.06"]
[Round "8.2"]
[White "Knuedel, Torben"]
[Black "Sriram, Jha"]
[Result "1/2-1/2"]
[ECO "C94"]
[WhiteElo "2210"]
[BlackElo "2361"]
[Annotator "TA"]
[PlyCount "137"]
[EventDate "2022.07.30"]
[EventType "tourn"]
[EventCountry "GER"]
[SourceTitle "playchess.com"]
[Source "ChessBase"]
[SourceQuality "1"]
[TimeControl "40/5400+30:1800+30"]

{[%evp 17,137,31,39,27,27,14,12,25,19,0,0,4,2,4,16,0,0,0,0,0,0,0,0,0,0,0,0,0,0,-4,0,-45,-46,-45,-41,-44,-44,-43,-38,-41,-29,-30,-30,-50,-30,-52,-52,-70,-62,-64,-63,-188,-184,-147,-155,-130,-92,-92,-41,-41,-41,-41,-33,-98,-82,-91,-70,-91,-31,-96,-96,-96,-96,-104,-96,-97,-8,-8,-8,-8,-8,-8,-8,-8,-8,-8,-8,-222,-222,-4357,-222,-5097,-5093,-1340,-14,-222,-222,-222,-222,-222,-222,-222,-222,-222,-425,-29974,0,0,0,0,0,0,0,0,0,0,0,0,0,0,0,0]} 1. e4 {[%emt 0:00:03]} e5 {[%emt 0:00:36]} 2. Nf3 {[%emt 0:00:10]} Nc6 {[%emt 0:00:10]} 3. Bb5 {[%emt 0:00:05][%cal Bf1b5,Bb5a4,Ba4b3][%mdl 32]} a6 {[%emt 0:00:07]} 4. Ba4 {[%emt 0:00:04]} Nf6 {[%emt 0:00:04]} 5. O-O {[%emt 0:00:07]} Be7 {[%emt 0:00:08]} 6. Re1 {[%emt 0:00:05]} b5 {[%emt 0:00:07]} 7. Bb3 {[%emt 0:00:03]} d6 {[%emt 0:00:06]} 8. c3 {[%emt 0:00:05]} O-O {[%emt 0:00:34]} 9. h3 {[%emt 0:00:10]} Nb8 {[%emt 0:00:07]} 10. a4 {[%emt 0:00:05] C94: Closed Ruy Lopez: Breyer Variation with 10 d3.} Bb7 {[%emt 0:01:50]} 11. axb5 {[%emt 0:00:05]} axb5 {[%emt 0:02:42]} (11... Nxe4 {is more complex.} 12. d4 axb5 13. Rxa8 Bxa8 14. dxe5 Nc5) 12. Rxa8 {[%emt 0:00:04]} Bxa8 {[%emt 0:00:01]} 13. d3 {[%emt 0:00:06]} Nbd7 {[%emt 0:02:13]} 14. Na3 {[%emt 0:00:10]} Qb8 {[%emt 0:01:12]} 15. Nc2 {[%emt 0:10:49]} (15. Nh4 {keeps more tension.} Re8 16. Nf5 Bf8 17. Bg5) 15... Nc5 {[%emt 0:02:29] [#]} 16. Ne3 $146 {[%emt 0:04:57]} ({Predecessor:} 16. Ba2 Qa7 17. Na3 Ncd7 18. b4 c5 19. Qc2 Qa6 20. c4 cxb4 21. Nxb5 Nc5 22. Bd2 Nxd3 23. Qxd3 Qxa2 24. Bxb4 Rd8 25. Nd2 {½-½ (25) Moskalenko,E (2219)-Schakel,C (2375) ICCF email 2013}) 16... Nxb3 {[%emt 0:05:16]} 17. Qxb3 {[%emt 0:03:01]} g6 {[%emt 0:02:50]} 18. Ng4 {[%emt 0:17:18]} Nxg4 {[%emt 0:03:27]} 19. hxg4 {[%emt 0:00:02]} c5 {[%emt 0:08:28]} 20. Bh6 {[%emt 0:11:58]} Rc8 {[%emt 0:01:43]} 21. Ra1 {[%emt 0:18:38]} Bc6 {[%emt 0:09:11][%cal Ba8c6,Bc6e8,Be8d7][%mdl 32]} 22. Ng5 {[%emt 0:02:44]} Be8 {[%emt 0:29:18]} 23. Qd5 {[%emt 0:02:37]} Qc7 {[%emt 0:03:50]} 24. Ra8 {[%emt 0:03:16]} Rxa8 {[%emt 0:00:59]} 25. Qxa8 {[%emt 0:02:06]} Qd8 {[%emt 0:00:01]} 26. Qxd8 {[%emt 0:01:07]} Bxd8 $15 {[%emt 0:00:02][%mdl 4096] Endgame KBB-KBN} 27. Nh3 {[%emt 0:02:08]} Bd7 {[%emt 0:02:42]} 28. f3 {[%emt 0:00:06]} f5 {[%emt 0:01:43]} 29. gxf5 {[%emt 0:00:20]} gxf5 {[%emt 0:00:02]} 30. Kf1 {[%emt 0:04:30]} Kf7 {[%emt 0:08:15]} 31. Bd2 {[%emt 0:01:35]} c4 {[%emt 0:01:37]} 32. dxc4 {[%emt 0:03:25]} bxc4 {[%emt 0:00:31]} 33. exf5 {[%emt 0:05:28]} Bxf5 {[%emt 0:00:08]} 34. Ng5+ {[%emt 0:00:17]} (34. g4 $15 Bc8 35. Nf2) 34... Kg6 $19 {[%emt 0:02:05]} 35. f4 {[%emt 0:02:39]} exf4 {[%emt 0:02:20]} 36. Nf3 {[%emt 0:00:21]} Bd3+ {[%emt 0:00:15]} 37. Kf2 {[%emt 0:00:55]} Kf5 {[%emt 0:01:01]} (37... Bb6+ $17 38. Nd4 Bxd4+ 39. cxd4 Kf5) 38. Nd4+ $1 $15 {[%emt 0:00:39]} Ke4 {[%emt 0:01:27]} 39. Bxf4 $1 {[%emt 0:01:29]} d5 {[%emt 0:04:59]} 40. Bd6 {[%emt 0:02:34]} (40. Ne6 $15) 40... Bg5 {[%emt 0:00:37]} 41. Ne6 {[%emt 0:09:14]} Be3+ {[%emt 0:00:43]} 42. Kg3 {[%emt 0:00:15]} Bd2 {[%emt 0:17:27]} ({Black should try} 42... Be2 $17) 43. Nc5+ {[%emt 0:03:25] [#]} (43. Kf2 $1 $15) 43... Ke3 $1 $17 {[%emt 0:00:14]} 44. Bf4+ {[%emt 0:05:08]} Ke2 {[%emt 0:00:04] Threatens to win with ...Be1+.} 45. Bxd2 {[%emt 0:00:07]} Kxd2 {[%emt 0:00:01] KB-KN} 46. Kf4 {[%emt 0:03:26]} Bf1 {[%emt 0:02:05]} (46... Kc2 $17 47. Ke3 Bf5) 47. g4 $1 $11 {[%emt 0:01:37]} Kc2 {[%emt 0:00:10]} 48. Ke5 {[%emt 0:05:01]} Kxb2 {[%emt 0:00:13]} 49. Kd4 {[%emt 0:01:23]} h6 {[%emt 0:02:04][%cal Bh7h6,Bh6h5,Bh5h4,Bh4h3][%mdl 32] And now ...Be2 would win.} 50. Na4+ {[%emt 0:02:17]} Kb3 {[%emt 0:03:26]} 51. Nb6 {[%emt 0:00:21]} Be2 {[%emt 0:07:58]} (51... Bg2 $5) 52. Nxd5 $2 {[%emt 0:02:47]} (52. Kxd5 $11 Bf3+ 53. Kd4) 52... Bxg4 $19 {[%emt 0:00:04]} 53. Ne3 $2 {[%emt 0:00:55]} (53. Ke3) 53... Be2 $2 {[%emt 0:01:46]} (53... Be6 54. Ng2 h5) 54. Nf5 $2 {[%emt 0:00:24]} (54. Nd5) 54... h5 {[%emt 0:00:19]} 55. Ng3 {[%emt 0:01:57] [#]} Bf3 $2 {[%emt 0:01:42]} (55... Bd1 $1 $19 {( -> ...h4)} 56. Nf5 Bc2) 56. Ke3 $2 {[%emt 0:00:50]} (56. Nf1 $11 {and White stays safe.} Be2 57. Ng3) 56... Bg4 {[%emt 0:00:41]} ({Worse is} 56... Kxc3 57. Kxf3 h4 58. Ne4+ Kd4 59. Nd6 $11) 57. Kd2 {[%emt 0:00:37]} h4 {[%emt 0:00:24]} 58. Nf1 {[%emt 0:00:02]} h3 {[%emt 0:00:52]} 59. Nh2 {[%emt 0:00:08]} Bh5 {[%emt 0:00:13]} 60. Nf1 {[%emt 0:00:06]} Kb2 $2 {[%emt 0:01:48]} (60... Bf7 61. Nh2 Bh5) 61. Nh2 {[%emt 0:00:06]} Be2 $2 {[%emt 0:00:13] Against Nf1} 62. Kxe2 $11 {[%emt 0:00:08] The position is equal.} Kxc3 {[%emt 0:00:01] KN-KPP} 63. Nf3 {[%emt 0:01:26]} Kb2 {[%emt 0:01:12]} 64. Kf2 {[%emt 0:00:28]} c3 {[%emt 0:00:57]} 65. Nd4 {[%emt 0:00:09]} Kc1 {[%emt 0:00:32]} (65... h2 $5 66. Kg2 c2 67. Nxc2 Kxc2 $11) 66. Ne2+ {[%emt 0:00:10]} Kd2 {[%emt 0:00:02]} 67. Nxc3 {[%emt 0:00:06]} Kxc3 {[%emt 0:00:01]} 68. Kg3 {[%emt 0:00:06]} h2 {[%emt 0:00:02]} 69. Kxh2 {[%emt 0:00:04] Whites escaped into a draw.  Weighted Error Value: White=0.43/Black=0.37} 1/2-1/2

[Event "NSV chessemy IM 2022"]
[Site "Braunschweig"]
[Date "2022.08.06"]
[Round "8.3"]
[White "Colbow, Collin"]
[Black "Sumets, Andrey"]
[Result "1/2-1/2"]
[ECO "B43"]
[WhiteElo "2325"]
[BlackElo "2542"]
[Annotator "TA"]
[PlyCount "37"]
[EventDate "2022.07.30"]
[EventType "tourn"]
[EventCountry "GER"]
[SourceTitle "playchess.com"]
[Source "ChessBase"]
[SourceQuality "1"]
[TimeControl "40/5400+30:1800+30"]

{[%evp 14,37,32,28,30,45,96,84,105,73,85,95,86,89,87,72,157,106,97,91,100,0,89,0,113,0]} 1. e4 {[%emt 0:01:40]} c5 {[%emt 0:00:12]} 2. Nf3 {[%emt 0:01:00]} e6 {[%emt 0:00:07]} 3. d4 {[%emt 0:00:20]} cxd4 {[%emt 0:00:07]} 4. Nxd4 {[%emt 0:00:04]} a6 {[%emt 0:00:19]} 5. Nc3 {[%emt 0:01:44]} b5 {[%emt 0:00:04]} 6. Bd3 {[%emt 0:00:36]} Qb6 {[%emt 0:00:06]} 7. Nb3 {[%emt 0:06:41]} Qc7 {[%emt 0:00:06]} 8. O-O {[%emt 0:01:36]} Nc6 {[%emt 0:00:53] B43: Sicilian: Kan Variation: 5 Nc3.} 9. f4 {[%emt 0:09:16]} b4 {[%emt 0:01:27] [#]} ({Black should play} 9... d6 $14) 10. Na4 $1 $16 {[%emt 0:08:30]} Nf6 {[%emt 0:00:21]} 11. Be3 {[%emt 0:01:49]} Rb8 {[%emt 0:00:53]} 12. c4 {[%emt 0:14:25]} bxc3 {[%emt 0:09:59]} 13. Nxc3 {[%emt 0:00:57] [#]} d6 $146 {[%emt 0:04:43] Against e5} ({Predecessor:} 13... h5 14. Be2 Rb4 15. Bf3 Qb8 16. Rf2 a5 17. Qe2 Bd6 18. e5 Nxe5 19. fxe5 Bxe5 {0-1 (67) Miroslaw,M (2280)-Jakubowski,K (2508) Pokrzywna 2018}) 14. Rc1 {[%emt 0:05:51]} Qb7 {[%emt 0:07:16]} (14... Be7 $142) 15. Qf3 {[%emt 0:12:43]} (15. Na4 $142) 15... Be7 {[%emt 0:11:08]} 16. Qg3 {[%emt 0:06:43] [#] And now e5 would win.} Nh5 {[%emt 0:29:57]} 17. Qf3 {[%emt 0:01:06] White is more active.} Nf6 {[%emt 0:00:07]} 18. Qg3 {[%emt 0:00:55]} Nh5 {[%emt 0:00:05]} 19. Qf3 {[%emt 0:03:21] Weighted Error Value: White=0.27 (precise) /Black=0.11 (very precise)} (19. Qf2 $16) 1/2-1/2

[Event "NSV chessemy IM 2022"]
[Site "Braunschweig"]
[Date "2022.08.06"]
[Round "8.4"]
[White "von Mettenheim, Johannes"]
[Black "Fischer, Daniel"]
[Result "0-1"]
[ECO "E12"]
[WhiteElo "2253"]
[BlackElo "2351"]
[Annotator "TA"]
[PlyCount "60"]
[EventDate "2022.07.30"]
[EventType "tourn"]
[EventCountry "GER"]
[SourceTitle "playchess.com"]
[Source "ChessBase"]
[SourceQuality "1"]
[TimeControl "40/5400+30:1800+30"]

{[%evp 9,60,18,13,10,14,13,27,20,18,11,20,15,12,-255,-247,-240,-189,-187,-176,-261,-256,-284,-276,-269,-280,-314,-329,-365,-364,-355,-306,-299,-312,-405,-401,-419,-404,-531,-520,-462,-416,-550,-549,-731,-712,-876,-691,-689,-676,-671,-663,-593,-591]} 1. d4 {[%emt 0:00:03]} Nf6 {[%emt 0:00:04]} 2. c4 {[%emt 0:00:10]} e6 {[%emt 0:00:05]} 3. Nf3 {[%emt 0:00:09]} b6 {[%emt 0:02:05]} 4. a3 {[%emt 0:00:21]} Bb7 {[%emt 0:00:28]} 5. Bf4 {[%emt 0:00:11]} d5 {[%emt 0:06:25]} 6. cxd5 {[%emt 0:00:06] E12: Queen's Indian: Unusual White 4th moves, 4 a3, 4 Nc3 Bb7 5 a3 and 4 Nc3 Bb7 .} exd5 {[%emt 0:03:15]} 7. e3 {[%emt 0:00:20]} Be7 {[%emt 0:02:36] [#]} 8. Qa4+ $146 {[%emt 0:06:07] White has an edge.} ({Predecessor:} 8. Bb5+ c6 9. Bd3 O-O 10. Nc3 Nbd7 11. Ne5 Re8 12. O-O Nxe5 13. dxe5 Nd7 14. Bg3 {½-½ (61) Parligras,M (2645)-Rakesh,K (2385) Abu Dhabi 2018}) 8... c6 {[%emt 0:02:43]} 9. h3 {[%emt 0:03:02]} O-O {[%emt 0:01:14]} 10. Nc3 {[%emt 0:00:05]} Nbd7 {[%emt 0:02:56][%cal Bb8d7,Bd7b6,Bb6c4][%mdl 32]} 11. Ba6 $2 {[%emt 0:06:07][%mdl 8192]} (11. Rd1 $11 {and White is okay.}) 11... b5 $19 {[%emt 0:04:10]} 12. Nxb5 {[%emt 0:02:32]} cxb5 {[%emt 0:06:07]} 13. Bxb5 {[%emt 0:00:38]} Nb6 {[%emt 0:00:42]} 14. Qd1 {[%emt 0:02:29]} (14. Qb3 $142) 14... Nc4 {[%emt 0:02:38]} 15. Bxc4 {[%emt 0:00:09]} dxc4 {[%emt 0:00:03]} 16. O-O {[%emt 0:02:07]} Qd5 {[%emt 0:01:38]} 17. Re1 {[%emt 0:03:16]} Ne4 {[%emt 0:02:15]} 18. Qc2 {[%emt 0:02:00]} Rac8 {[%emt 0:02:44]} 19. Ne5 {[%emt 0:01:36]} Bh4 {[%emt 0:08:15]} 20. f3 {[%emt 0:05:46]} Bxe1 {[%emt 0:05:02][%cal Bh4e1,Be1b4,Bb4e7][%mdl 32]} 21. fxe4 {[%emt 0:01:04]} Qa5 {[%emt 0:01:06]} 22. Nf3 {[%emt 0:00:36]} Bb4 {[%emt 0:01:59]} 23. Rf1 {[%emt 0:01:03]} Be7 {[%emt 0:00:35]} 24. d5 {[%emt 0:01:38]} f5 {[%emt 0:07:49][%cal Bf7f5,Bf5e4][%mdl 32] ...fxe4 is the strong threat.} 25. Nd4 {[%emt 0:05:15]} fxe4 {[%emt 0:02:25] Black is clearly winning.} 26. d6 {[%emt 0:01:10] [#]} Rxf4 $1 {[%emt 0:01:25]} 27. Rxf4 {[%emt 0:00:08]} (27. dxe7 Rxf1+) 27... Qe1+ {[%emt 0:06:34]} 28. Rf1 {[%emt 0:14:04]} Qxe3+ {[%emt 0:00:14]} 29. Kh1 {[%emt 0:00:19] Threatens to win with Nf5.} Qxd4 {[%emt 0:05:49]} 30. dxe7 {[%emt 0:00:06] [#] Strongly threatening Qa4.} Qc5 {[%emt 0:00:48] White got outplayed after the opening.  Weighted Error Value: White=0.61/Black=0.13 (very precise)} 0-1

[Event "NSV chessemy IM 2022"]
[Site "Braunschweig"]
[Date "2022.08.06"]
[Round "8.5"]
[White "Voege, Tobias"]
[Black "Chennaoui, Yasin"]
[Result "1-0"]
[ECO "A21"]
[WhiteElo "2272"]
[BlackElo "2127"]
[Annotator "RC"]
[PlyCount "69"]
[EventDate "2022.07.30"]
[EventType "tourn"]
[EventCountry "GER"]
[SourceTitle "playchess.com"]
[Source "ChessBase"]
[SourceQuality "1"]
[TimeControl "40/5400+30:1800+30"]

1. c4 {[%emt 0:00:01]} g6 {[%emt 0:01:08]} 2. Nc3 {[%emt 0:00:33]} Bg7 {[%emt 0:02:18]} 3. Nf3 {[%emt 0:00:37]} e5 {[%emt 0:13:15]} 4. g3 {[%emt 0:00:18]} b6 {[%emt 0:11:04]} 5. Bg2 {[%emt 0:02:35]} Bb7 {[%emt 0:00:05]} 6. O-O {[%emt 0:02:06]} Nc6 {[%emt 0:02:24]} 7. Rb1 {[%emt 0:07:46]} a5 {[%emt 0:07:06]} 8. a3 {[%emt 0:06:59]} Nge7 {[%emt 0:00:11]} 9. Ne1 {[%emt 0:07:27]} h5 {[%emt 0:05:02]} 10. Nc2 {[%emt 0:07:36]} h4 {[%emt 0:00:34]} 11. Ne3 {[%emt 0:03:40]} hxg3 {[%emt 0:02:56]} 12. fxg3 {[%emt 0:00:19]} f5 {[%emt 0:04:17]} 13. Ned5 {[%emt 0:11:01]} Nxd5 {[%emt 0:04:42]} 14. cxd5 {[%emt 0:02:38]} Ne7 {[%emt 0:00:34]} 15. d6 {[%emt 0:01:16]} Nc6 {[%emt 0:00:05]} 16. Nb5 {[%emt 0:00:28]} cxd6 {[%emt 0:03:20]} 17. Nxd6+ {[%emt 0:00:06]} Ke7 {[%emt 0:00:04]} 18. Nxb7 {[%emt 0:00:39]} Qc7 {[%emt 0:00:10]} 19. d4 {[%emt 0:06:23]} exd4 {[%emt 0:13:06]} 20. Bg5+ {[%emt 0:01:34]} Bf6 {[%emt 0:01:22]} 21. Bxf6+ {[%emt 0:00:48]} Kxf6 {[%emt 0:00:02]} 22. b4 {[%emt 0:01:10]} axb4 {[%emt 0:01:02]} 23. axb4 {[%emt 0:00:23]} Qe5 {[%emt 0:01:16]} 24. Qd3 {[%emt 0:08:13]} Ra2 {[%emt 0:05:48]} 25. b5 {[%emt 0:03:36]} Ne7 {[%emt 0:00:47]} 26. e4 {[%emt 0:09:23]} d5 {[%emt 0:08:30]} 27. Rbe1 {[%emt 0:02:00]} Rb8 {[%emt 0:05:35]} 28. exf5 {[%emt 0:02:03]} Nxf5 {[%emt 0:05:33]} 29. Rxe5 {[%emt 0:00:41]} Kxe5 {[%emt 0:00:01]} 30. Re1+ {[%emt 0:00:29]} Ne3 {[%emt 0:01:02]} 31. Rxe3+ {[%emt 0:00:09]} dxe3 {[%emt 0:00:05]} 32. Qxe3+ {[%emt 0:00:26]} Kf6 {[%emt 0:00:43]} 33. Qd4+ {[%emt 0:00:07]} Ke7 {[%emt 0:00:53]} 34. Qe5+ {[%emt 0:00:27]} Kd7 {[%emt 0:00:08]} 35. Bh3# {[%emt 0:00:41]} 1-0